fUSD/lending_fUSD_20250617
["ID","MTS","AMOUNT","RATE_DAILY","PERIOD"]
[366277962,1750170662940,-386.207424,0.00016767,2]
[366277963,1750170662951,-386.207424,0.00016767,2]
[366277964,1750170662961,-386.207424,0.00016767,2]
[366277965,1750170662972,-232.713536,0.00016767,2]
[366277966,1750170662982,-232.713536,0.00016767,2]
[366277967,1750170662992,-232.713536,0.00016767,2]
[366277968,1750170663002,-232.713536,0.00016767,2]
[366277969,1750170663012,-232.713536,0.00016767,2]
[366277970,1750170663025,-232.713536,0.00016767,2]
[366277971,1750170663035,-632.389838,0.00016767,2]
[366277972,1750170663047,-1459.068266,0.00016767,2]
[366277973,1750170663057,-490.0,0.00016767,2]
[366277974,1750170663069,-490.0,0.00016767,2]
[366277975,1750170663079,-490.0,0.00016767,2]
[366277976,1750170663090,-490.0,0.00016767,2]
[366277977,1750170663100,-490.0,0.00016767,2]
[366277978,1750170663111,-490.0,0.00016767,2]
[366277979,1750170663122,-490.0,0.00016767,2]
[366277980,1750170663132,-490.0,0.00016767,2]
[366277981,1750170663142,-490.0,0.00016767,2]
[366277982,1750170663152,-490.0,0.00016767,2]
[366277983,1750170663163,-250.0,0.00016767,2]
[366277984,1750170663173,-497.44,0.00016767,2]
[366277985,1750170663184,-490.0,0.00016767,2]
[366277986,1750170663194,-490.0,0.00016767,2]
[366277987,1750170663205,-334.87,0.00016767,2]
[366277988,1750170663216,-490.0,0.00016767,2]
[366277989,1750170663227,-490.0,0.00016767,2]
[366277990,1750170663237,-490.0,0.00016767,2]
[366277991,1750170663247,-490.0,0.00016767,2]
[366277992,1750170663258,-490.0,0.00016767,2]
[366277993,1750170663268,-499.35,0.00016767,2]
[366277994,1750170663281,-490.0,0.00016767,2]
[366277995,1750170663291,-490.0,0.00016767,2]
[366277996,1750170663302,-490.0,0.00016767,2]
[366277997,1750170663312,-490.0,0.00016767,2]
[366277998,1750170663323,-490.0,0.00016767,2]
[366277999,1750170663334,-490.0,0.00016767,2]
[366278000,1750170663344,-490.0,0.00016767,2]
[366278001,1750170663354,-490.0,0.00016767,2]
[366278002,1750170663365,-490.0,0.00016767,2]
[366278003,1750170663375,-490.0,0.00016767,2]
[366278004,1750170663385,-490.0,0.00016767,2]
[366278005,1750170663396,-490.0,0.00016767,2]
[366278006,1750170663407,-499.32236933,0.00016767,2]
[366278007,1750170663417,-490.0,0.00016767,2]
[366278008,1750170663427,-490.0,0.00016767,2]
[366278009,1750170663438,-490.0,0.00016767,2]
[366278010,1750170663448,-490.0,0.00016767,2]
[366278011,1750170663458,-490.0,0.00016767,2]
[366278012,1750170663469,-490.0,0.00016767,2]
[366278013,1750170663482,-490.0,0.00016767,2]
[366278014,1750170663492,-520.37,0.00016767,2]
[366278015,1750170663503,-490.0,0.00016767,2]
[366278016,1750170663513,-490.0,0.00016767,2]
[366278017,1750170663524,-490.0,0.00016767,2]
[366278018,1750170663534,-490.0,0.00016767,2]
[366278019,1750170663544,-302.1676921,0.00016767,2]
[366278020,1750170663553,-490.0,0.00016767,2]
[366278021,1750170663563,-490.0,0.00016767,2]
[366278022,1750170663574,-490.0,0.00016767,2]
[366278023,1750170663585,-490.0,0.00016767,2]
[366278024,1750170663595,-490.0,0.00016767,2]
[366278025,1750170663606,-490.0,0.00016767,2]
[366278026,1750170663616,-490.0,0.00016767,2]
[366278027,1750170663626,-490.0,0.00016767,2]
[366278028,1750170663637,-875.48,0.00016767,2]
[366278029,1750170663647,-490.0,0.00016767,2]
[366278030,1750170663657,-490.0,0.00016767,2]
[366278031,1750170663667,-490.0,0.00016767,2]
[366278032,1750170663678,-490.0,0.00016767,2]
[366278033,1750170663689,-490.0,0.00016767,2]
[366278034,1750170663700,-490.0,0.00016767,2]
[366278035,1750170663711,-490.0,0.00016767,2]
[366278036,1750170663721,-556.36,0.00016767,2]
[366278037,1750170663731,-490.0,0.00016767,2]
[366278038,1750170663741,-490.0,0.00016767,2]
[366278039,1750170663752,-490.0,0.00016767,2]
[366278040,1750170663762,-575.14,0.00016767,2]
[366278041,1750170663774,-490.0,0.00016767,2]
[366278042,1750170663784,-460.67086211,0.00016767,2]
[366278043,1750170663794,-490.0,0.00016767,2]
[366278044,1750170663805,-490.0,0.00016767,2]
[366278045,1750170663819,-490.0,0.00016767,2]
[366278046,1750170663830,-490.0,0.00016767,2]
[366278047,1750170663841,-490.0,0.00016767,2]
[366278048,1750170663851,-490.0,0.00016767,2]
[366278049,1750170663862,-490.0,0.00016767,2]
[366278050,1750170663873,-490.0,0.00016767,2]
[366278051,1750170663884,-490.0,0.00016767,2]
[366278052,1750170663896,-490.0,0.00016767,2]
[366278053,1750170663907,-490.0,0.00016767,2]
[366278054,1750170663918,-490.0,0.00016767,2]
[366278055,1750170663928,-490.0,0.00016767,2]
[366278056,1750170663938,-490.0,0.00016767,2]
[366278057,1750170663948,-490.0,0.00016767,2]
[366278058,1750170663958,-490.0,0.00016767,2]
[366278059,1750170663969,-490.0,0.00016767,2]
[366278060,1750170663979,-490.0,0.00016767,2]
[366278061,1750170663990,-490.0,0.00016767,2]
[366278062,1750170664000,-490.0,0.00016767,2]
[366278063,1750170664010,-490.0,0.00016767,2]
[366278064,1750170664021,-490.0,0.00016767,2]
[366278065,1750170664032,-490.0,0.00016767,2]
[366278066,1750170664042,-490.0,0.00016767,2]
[366278067,1750170664052,-490.0,0.00016767,2]
[366278068,1750170664062,-490.0,0.00016767,2]
[366278069,1750170664073,-490.0,0.00016767,2]
[366278070,1750170664083,-1537.87,0.00016767,2]
[366278071,1750170664093,-490.0,0.00016767,2]
[366278072,1750170664103,-490.0,0.00016767,2]
[366278073,1750170664114,-352.52202953,0.00016767,2]
[366278074,1750170664124,-490.0,0.00016767,2]
[366278075,1750170664134,-490.0,0.00016767,2]
[366278076,1750170664144,-490.0,0.00016767,2]
[366278077,1750170664155,-1091.44,0.00016767,2]
[366278078,1750170664165,-490.0,0.00016767,2]
[366278079,1750170664175,-490.0,0.00016767,2]
[366278080,1750170664186,-490.0,0.00016767,2]
[366278081,1750170664197,-490.0,0.00016767,2]
[366278082,1750170664208,-490.0,0.00016767,2]
[366278083,1750170664218,-490.0,0.00016767,2]
[366278084,1750170664229,-490.0,0.00016767,2]
[366278085,1750170664240,-760.91,0.00016767,2]
[366278086,1750170664252,-505.19,0.00016767,2]
[366278087,1750170664263,-669.29,0.00016767,2]
[366278088,1750170664277,-490.0,0.00016767,2]
[366278089,1750170664289,-490.0,0.00016767,2]
[366278090,1750170664300,-490.0,0.00016767,2]
[366278091,1750170664311,-712.45,0.00016767,2]
[366278092,1750170664321,-490.0,0.00016767,2]
[366278093,1750170664331,-490.0,0.00016767,2]
[366278094,1750170664342,-490.0,0.00016767,2]
[366278095,1750170664352,-490.0,0.00016767,2]
[366278096,1750170664362,-490.0,0.00016767,2]
[366278097,1750170664373,-490.0,0.00016767,2]
[366278098,1750170664383,-490.0,0.00016767,2]
[366278099,1750170664393,-490.0,0.00016767,2]
[366278100,1750170664403,-490.0,0.00016767,2]
[366278101,1750170664413,-490.0,0.00016767,2]
[366278102,1750170664423,-1903.1,0.00016767,2]
[366278103,1750170664433,-490.0,0.00016767,2]
[366278104,1750170664443,-490.0,0.00016767,2]
[366278105,1750170664453,-490.0,0.00016767,2]
[366278106,1750170664463,-490.0,0.00016767,2]
[366278107,1750170664473,-1279.76,0.00016767,2]
[366278108,1750170664483,-490.0,0.00016767,2]
[366278109,1750170664493,-490.0,0.00016767,2]
[366278110,1750170664503,-490.0,0.00016767,2]
[366278111,1750170664513,-490.0,0.00016767,2]
[366278112,1750170664525,-1856.79,0.00016767,2]
[366278113,1750170664797,-798.01,0.00016767,2]
[366278114,1750170664832,-490.0,0.00016767,2]
[366278115,1750170664842,-1065.52,0.00016767,2]
[366278116,1750170664853,-490.0,0.00016767,2]
[366278117,1750170664864,-490.0,0.00016767,2]
[366278118,1750170664874,-490.0,0.00016767,2]
[366278119,1750170664884,-490.0,0.00016767,2]
[366278120,1750170664896,-1000.0,0.00016767,2]
[366278121,1750170664906,-490.0,0.00016767,2]
[366278122,1750170664917,-490.0,0.00016767,2]
[366278123,1750170664927,-490.0,0.00016767,2]
[366278124,1750170664937,-875.88,0.00016767,2]
[366278125,1750170664947,-490.0,0.00016767,2]
[366278126,1750170664958,-490.0,0.00016767,2]
[366278127,1750170664968,-490.0,0.00016767,2]
[366278128,1750170664982,-607.79,0.00016767,2]
[366278129,1750170664992,-536.32,0.00016767,2]
[366278130,1750170665002,-490.0,0.00016767,2]
[366278131,1750170665013,-490.0,0.00016767,2]
[366278132,1750170665025,-622.03,0.00016767,2]
[366278133,1750170665035,-490.0,0.00016767,2]
[366278134,1750170665044,-775.16,0.00016767,2]
[366278135,1750170665054,-490.0,0.00016767,2]
[366278136,1750170665064,-197.28510802,0.00016767,2]
[366278137,1750170665074,-151.38814331,0.00016767,2]
[366278138,1750170665084,-490.0,0.00016767,2]
[366278139,1750170665094,-490.0,0.00016767,2]
[366278140,1750170665104,-490.0,0.00016767,2]
[366278141,1750170665114,-776.96,0.00016767,2]
[366278142,1750170665124,-490.0,0.00016767,2]
[366278143,1750170665135,-490.0,0.00016767,2]
[366278144,1750170665145,-913.86,0.00016767,2]
[366278145,1750170665155,-490.0,0.00016767,2]
[366278146,1750170665166,-490.0,0.00016767,2]
[366278147,1750170665176,-490.0,0.00016767,2]
[366278148,1750170665186,-1037.49,0.00016767,2]
[366278149,1750170665196,-490.0,0.00016767,2]
[366278150,1750170665206,-490.0,0.00016767,2]
[366278151,1750170665216,-490.0,0.00016767,2]
[366278152,1750170665226,-922.28,0.00016767,2]
[366278153,1750170665237,-519.6,0.00016767,2]
[366278154,1750170665247,-495.39,0.00016767,2]
[366278155,1750170665257,-490.0,0.00016767,2]
[366278156,1750170665267,-567.52,0.00016767,2]
[366278157,1750170665280,-490.0,0.00016767,2]
[366278158,1750170665291,-490.0,0.00016767,2]
[366278159,1750170665301,-490.0,0.00016767,2]
[366278160,1750170665311,-490.0,0.00016767,2]
[366278161,1750170665322,-490.0,0.00016767,2]
[366278162,1750170665332,-490.0,0.00016767,2]
[366278163,1750170665342,-490.0,0.00016767,2]
[366278164,1750170665356,-490.0,0.00016767,2]
[366278165,1750170665366,-868.65,0.00016767,2]
[366278166,1750170665376,-490.0,0.00016767,2]
[366278167,1750170665386,-578.98,0.00016767,2]
[366278168,1750170665396,-1349.99,0.00016767,2]
[366278169,1750170665406,-490.0,0.00016767,2]
[366278170,1750170665416,-824.21,0.00016767,2]
[366278171,1750170665426,-490.0,0.00016767,2]
[366278172,1750170665436,-490.0,0.00016767,2]
[366278173,1750170665446,-490.0,0.00016767,2]
[366278174,1750170665456,-547.8,0.00016767,2]
[366278175,1750170665465,-490.0,0.00016767,2]
[366278176,1750170665475,-623.35,0.00016767,2]
[366278177,1750170665485,-1204.09,0.00016767,2]
[366278178,1750170665495,-490.0,0.00016767,2]
[366278179,1750170665504,-490.0,0.00016767,2]
[366278180,1750170665514,-490.0,0.00016767,2]
[366278181,1750170665526,-522.58,0.00016767,2]
[366278182,1750170665536,-490.0,0.00016767,2]
[366278183,1750170665545,-538.71,0.00016767,2]
[366278184,1750170665555,-929.69,0.00016767,2]
[366278185,1750170665564,-490.0,0.00016767,2]
[366278186,1750170665574,-1343.07,0.00016767,2]
[366278187,1750170665583,-490.0,0.00016767,2]
[366278188,1750170665593,-490.0,0.00016767,2]
[366278189,1750170665603,-597.25,0.00016767,2]
[366278190,1750170665613,-490.0,0.00016767,2]
[366278191,1750170665623,-490.0,0.00016767,2]
[366278192,1750170665633,-490.0,0.00016767,2]
[366278193,1750170665643,-490.0,0.00016767,2]
[366278194,1750170665653,-490.0,0.00016767,2]
[366278195,1750170665663,-490.0,0.00016767,2]
[366278196,1750170665673,-633.01,0.00016767,2]
[366278197,1750170665683,-490.0,0.00016767,2]
[366278198,1750170665693,-252.07208142,0.00016767,2]
[366278199,1750170665703,-490.0,0.00016767,2]
[366278200,1750170665712,-963.78,0.00016767,2]
[366278201,1750170665723,-490.0,0.00016767,2]
[366278202,1750170665733,-490.0,0.00016767,2]
[366278203,1750170665742,-490.0,0.00016767,2]
[366278204,1750170665752,-490.0,0.00016767,2]
[366278205,1750170665764,-387.0924395,0.00016767,2]
[366278206,1750170665776,-1198.21,0.00016767,2]
[366278207,1750170665785,-490.0,0.00016767,2]
[366278208,1750170665795,-617.16,0.00016767,2]
[366278209,1750170665805,-490.0,0.00016767,2]
[366278210,1750170665819,-490.0,0.00016767,2]
[366278211,1750170665829,-490.0,0.00016767,2]
[366278212,1750170665839,-154.723365,0.00016767,2]
[366278213,1750170665849,-490.0,0.00016767,2]
[366278214,1750170665859,-519.15,0.00016767,2]
[366278215,1750170665870,-490.0,0.00016767,2]
[366278216,1750170665880,-490.0,0.00016767,2]
[366278217,1750170665891,-504.24,0.00016767,2]
[366278218,1750170665901,-490.0,0.00016767,2]
[366278219,1750170665910,-490.0,0.00016767,2]
[366278220,1750170665920,-490.0,0.00016767,2]
[366278221,1750170665930,-490.0,0.00016767,2]
[366278222,1750170665940,-490.0,0.00016767,2]
[366278223,1750170665950,-490.0,0.00016767,2]
[366278224,1750170665960,-490.0,0.00016767,2]
[366278225,1750170665970,-490.0,0.00016767,2]
[366278226,1750170665979,-490.0,0.00016767,2]
[366278227,1750170665989,-490.0,0.00016767,2]
[366278228,1750170665999,-490.0,0.00016767,2]
[366278229,1750170666010,-490.0,0.00016767,2]
[366278230,1750170666022,-499.36,0.00016767,2]
[366278231,1750170666032,-490.0,0.00016767,2]
[366278232,1750170666042,-490.0,0.00016767,2]
[366278233,1750170666052,-1228.56,0.00016767,2]
[366278234,1750170666061,-490.0,0.00016767,2]
[366278235,1750170666071,-490.0,0.00016767,2]
[366278236,1750170666081,-156.339876,0.00016767,2]
[366278237,1750170666091,-490.0,0.00016767,2]
[366278238,1750170666101,-490.0,0.00016767,2]
[366278239,1750170666113,-1589.59,0.00016767,2]
[366278240,1750170666124,-490.0,0.00016767,2]
[366278241,1750170666134,-490.0,0.00016767,2]
[366278242,1750170666144,-490.0,0.00016767,2]
[366278243,1750170666154,-490.0,0.00016767,2]
[366278244,1750170666164,-490.0,0.00016767,2]
[366278245,1750170666174,-490.0,0.00016767,2]
[366278246,1750170666184,-490.0,0.00016767,2]
[366278247,1750170666194,-558.49,0.00016767,2]
[366278248,1750170666204,-805.01,0.00016767,2]
[366278249,1750170666214,-559.19,0.00016767,2]
[366278250,1750170666223,-1030.44,0.00016767,2]
[366278251,1750170666234,-1298.04,0.00016767,2]
[366278252,1750170666244,-560.27,0.00016767,2]
[366278253,1750170666254,-496.5,0.00016767,2]
[366278254,1750170666264,-490.0,0.00016767,2]
[366278255,1750170666275,-490.0,0.00016767,2]
[366278256,1750170666285,-600.7,0.00016767,2]
[366278257,1750170666295,-490.0,0.00016767,2]
[366278258,1750170666306,-510.79,0.00016767,2]
[366278259,1750170666316,-490.0,0.00016767,2]
[366278260,1750170666326,-490.0,0.00016767,2]
[366278261,1750170666336,-490.0,0.00016767,2]
[366278262,1750170666346,-1514.73,0.00016767,2]
[366278263,1750170666356,-683.05,0.00016767,2]
[366278264,1750170666366,-490.0,0.00016767,2]
[366278265,1750170666377,-490.0,0.00016767,2]
[366278266,1750170666387,-490.0,0.00016767,2]
[366278267,1750170666397,-490.0,0.00016767,2]
[366278268,1750170666408,-490.0,0.00016767,2]
[366278269,1750170666418,-732.82,0.00016767,2]
[366278270,1750170666428,-490.0,0.00016767,2]
[366278271,1750170666438,-490.0,0.00016767,2]
[366278272,1750170666448,-490.0,0.00016767,2]
[366278273,1750170666459,-865.74,0.00016767,2]
[366278274,1750170666469,-2070.39,0.00016767,2]
[366278275,1750170666479,-490.0,0.00016767,2]
[366278276,1750170666488,-490.0,0.00016767,2]
[366278277,1750170666498,-490.0,0.00016767,2]
[366278278,1750170666508,-490.0,0.00016767,2]
[366278279,1750170666518,-490.0,0.00016767,2]
[366278280,1750170666531,-1100.96,0.00016767,2]
[366278281,1750170666541,-490.0,0.00016767,2]
[366278282,1750170666551,-490.0,0.00016767,2]
[366278283,1750170666561,-490.0,0.00016767,2]
[366278284,1750170666572,-1346.07,0.00016767,2]
[366278285,1750170666582,-490.0,0.00016767,2]
[366278286,1750170666592,-490.0,0.00016767,2]
[366278287,1750170666603,-255.93,0.00016767,2]
[366278288,1750170666613,-510.94,0.00016767,2]
[366278289,1750170666623,-490.0,0.00016767,2]
[366278290,1750170666633,-525.26,0.00016767,2]
[366278291,1750170666644,-490.0,0.00016767,2]
[366278292,1750170666654,-821.93,0.00016767,2]
[366278293,1750170666665,-490.0,0.00016767,2]
[366278294,1750170666676,-490.0,0.00016767,2]
[366278295,1750170666686,-490.0,0.00016767,2]
[366278296,1750170666696,-490.0,0.00016767,2]
[366278297,1750170666706,-490.0,0.00016767,2]
[366278298,1750170666717,-490.0,0.00016767,2]
[366278299,1750170666728,-711.46,0.00016767,2]
[366278300,1750170666738,-490.0,0.00016767,2]
[366278301,1750170666749,-878.76,0.00016767,2]
[366278302,1750170666759,-538.86,0.00016767,2]
[366278303,1750170666769,-490.0,0.00016767,2]
[366278304,1750170666782,-490.0,0.00016767,2]
[366278305,1750170666792,-490.0,0.00016767,2]
[366278306,1750170666803,-1159.99,0.00016767,2]
[366278307,1750170666815,-490.0,0.00016767,2]
[366278308,1750170666826,-490.0,0.00016767,2]
[366278309,1750170666836,-490.0,0.00016767,2]
[366278310,1750170666846,-490.0,0.00016767,2]
[366278311,1750170666857,-430.6481076,0.00016767,2]
[366278312,1750170666867,-490.0,0.00016767,2]
[366278313,1750170666877,-343.35204611,0.00016767,2]
[366278314,1750170666890,-490.0,0.00016767,2]
[366278315,1750170666901,-490.0,0.00016767,2]
[366278316,1750170666911,-490.0,0.00016767,2]
[366278317,1750170666921,-999.54,0.00016767,2]
[366278318,1750170666930,-490.0,0.00016767,2]
[366278319,1750170666941,-490.0,0.00016767,2]
[366278320,1750170666951,-1022.75,0.00016767,2]
[366278321,1750170666961,-941.81,0.00016767,2]
[366278322,1750170666971,-490.0,0.00016767,2]
[366278323,1750170666980,-490.0,0.00016767,2]
[366278324,1750170666991,-490.0,0.00016767,2]
[366278325,1750170667001,-582.49,0.00016767,2]
[366278326,1750170667012,-527.4,0.00016767,2]
[366278327,1750170667024,-490.0,0.00016767,2]
[366278328,1750170667034,-490.0,0.00016767,2]
[366278329,1750170667044,-490.0,0.00016767,2]
[366278330,1750170667054,-490.0,0.00016767,2]
[366278331,1750170667064,-618.68,0.00016767,2]
[366278332,1750170667074,-490.0,0.00016767,2]
[366278333,1750170667083,-490.0,0.00016767,2]
[366278334,1750170667093,-490.0,0.00016767,2]
[366278335,1750170667103,-1516.77,0.00016767,2]
[366278336,1750170667113,-490.0,0.00016767,2]
[366278337,1750170667122,-490.0,0.00016767,2]
[366278338,1750170667132,-1131.8,0.00016767,2]
[366278339,1750170667142,-551.88,0.00016767,2]
[366278340,1750170667152,-490.0,0.00016767,2]
[366278341,1750170667161,-686.42,0.00016767,2]
[366278342,1750170667171,-490.0,0.00016767,2]
[366278343,1750170667181,-990.23,0.00016767,2]
[366278344,1750170667190,-548.91,0.00016767,2]
[366278345,1750170667200,-695.39,0.00016767,2]
[366278346,1750170667210,-490.0,0.00016767,2]
[366278347,1750170667220,-490.0,0.00016767,2]
[366278348,1750170667230,-535.2,0.00016767,2]
[366278349,1750170667239,-490.0,0.00016767,2]
[366278350,1750170667248,-490.0,0.00016767,2]
[366278351,1750170667258,-490.0,0.00016767,2]
[366278352,1750170667267,-499.89249814,0.00016767,2]
[366278353,1750170667279,-490.0,0.00016767,2]
[366278354,1750170667288,-490.0,0.00016767,2]
[366278355,1750170667298,-490.0,0.00016767,2]
[366278356,1750170667307,-490.0,0.00016767,2]
[366278357,1750170667317,-606.28,0.00016767,2]
[366278358,1750170667326,-490.0,0.00016767,2]
[366278359,1750170667336,-511.66,0.00016767,2]
[366278360,1750170667345,-490.0,0.00016767,2]
[366278361,1750170667354,-490.0,0.00016767,2]
[366278362,1750170667364,-490.0,0.00016767,2]
[366278363,1750170667374,-762.97,0.00016767,2]
[366278364,1750170667383,-490.0,0.00016767,2]
[366278365,1750170667393,-490.0,0.00016767,2]
[366278366,1750170667403,-490.0,0.00016767,2]
[366278367,1750170667413,-809.39,0.00016767,2]
[366278368,1750170667422,-490.0,0.00016767,2]
[366278369,1750170667534,-490.0,0.00016767,2]
[366278370,1750170667545,-1225.94,0.00016767,2]
[366278371,1750170667554,-656.65,0.00016767,2]
[366278372,1750170667564,-490.0,0.00016767,2]
[366278373,1750170667574,-490.0,0.00016767,2]
[366278374,1750170667584,-490.0,0.00016767,2]
[366278375,1750170667594,-490.0,0.00016767,2]
[366278376,1750170667604,-679.15,0.00016767,2]
[366278377,1750170667613,-490.0,0.00016767,2]
[366278378,1750170667623,-506.56,0.00016767,2]
[366278379,1750170667633,-1167.5,0.00016767,2]
[366278380,1750170667643,-490.0,0.00016767,2]
[366278381,1750170667652,-490.0,0.00016767,2]
[366278382,1750170667662,-601.91,0.00016767,2]
[366278383,1750170667672,-490.0,0.00016767,2]
[366278384,1750170667682,-490.0,0.00016767,2]
[366278385,1750170667692,-611.09,0.00016767,2]
[366278386,1750170667701,-490.0,0.00016767,2]
[366278387,1750170667711,-785.74,0.00016767,2]
[366278388,1750170667722,-490.0,0.00016767,2]
[366278389,1750170667731,-490.0,0.00016767,2]
[366278390,1750170667741,-1316.85,0.00016767,2]
[366278391,1750170667750,-490.0,0.00016767,2]
[366278392,1750170667760,-490.0,0.00016767,2]
[366278393,1750170667770,-769.53,0.00016767,2]
[366278394,1750170667781,-650.07,0.00016767,2]
[366278395,1750170667791,-490.0,0.00016767,2]
[366278396,1750170667801,-490.0,0.00016767,2]
[366278397,1750170667810,-490.0,0.00016767,2]
[366278398,1750170667825,-1148.15,0.00016767,2]
[366278399,1750170667835,-490.0,0.00016767,2]
[366278400,1750170667845,-15777.44,0.00016767,2]
[366278401,1750170667855,-12264.38,0.00016767,2]
[366278402,1750170667866,-490.0,0.00016767,2]
[366278403,1750170667876,-490.0,0.00016767,2]
[366278404,1750170667886,-1022.2,0.00016767,2]
[366278405,1750170667897,-490.0,0.00016767,2]
[366278406,1750170667907,-1307.87,0.00016767,2]
[366278407,1750170667917,-5315.22,0.00016767,2]
[366278408,1750170667926,-786.58,0.00016767,2]
[366278409,1750170667936,-490.0,0.00016767,2]
[366278410,1750170667946,-490.0,0.00016767,2]
[366278411,1750170667955,-881.41,0.00016767,2]
[366278412,1750170667965,-490.0,0.00016767,2]
[366278413,1750170667975,-856.32,0.00016767,2]
[366278414,1750170667986,-891.29,0.00016767,2]
[366278415,1750170667995,-2879.0,0.00016767,2]
[366278416,1750170668005,-699.08,0.00016767,2]
[366278417,1750170668015,-490.0,0.00016767,2]
[366278418,1750170668024,-490.0,0.00016767,2]
[366278419,1750170668034,-4636.82,0.00016767,2]
[366278420,1750170668044,-490.0,0.00016767,2]
[366278421,1750170668054,-490.0,0.00016767,2]
[366278422,1750170668063,-490.0,0.00016767,2]
[366278423,1750170668072,-490.0,0.00016767,2]
[366278424,1750170668082,-490.0,0.00016767,2]
[366278425,1750170668091,-490.0,0.00016767,2]
[366278426,1750170668101,-1008.56,0.00016767,2]
[366278427,1750170668110,-490.0,0.00016767,2]
[366278428,1750170668120,-1190.58,0.00016767,2]
[366278429,1750170668130,-1512.34,0.00016767,2]
[366278430,1750170668139,-490.0,0.00016767,2]
[366278431,1750170668149,-490.0,0.00016767,2]
[366278432,1750170668158,-490.0,0.00016767,2]
[366278433,1750170668167,-490.0,0.00016767,2]
[366278434,1750170668176,-490.0,0.00016767,2]
[366278435,1750170668186,-854.67,0.00016767,2]
[366278436,1750170668195,-2496.37,0.00016767,2]
[366278437,1750170668205,-1681.96,0.00016767,2]
[366278438,1750170668214,-490.0,0.00016767,2]
[366278439,1750170668224,-12466.69,0.00016767,2]
[366278440,1750170668233,-490.0,0.00016767,2]
[366278441,1750170668243,-490.0,0.00016767,2]
[366278442,1750170668252,-490.0,0.00016767,2]
[366278443,1750170668262,-746.86,0.00016767,2]
[366278444,1750170668272,-1096.37,0.00016767,2]
[366278445,1750170668283,-2828.7,0.00016767,2]
[366278446,1750170668293,-896.34,0.00016767,2]
[366278447,1750170668304,-490.0,0.00016767,2]
[366278448,1750170668314,-490.0,0.00016767,2]
[366278449,1750170668323,-490.0,0.00016767,2]
[366278450,1750170668333,-490.0,0.00016767,2]
[366278451,1750170668343,-490.0,0.00016767,2]
[366278452,1750170668354,-7677.3,0.00016767,2]
[366278453,1750170668363,-490.0,0.00016767,2]
[366278454,1750170668372,-490.0,0.00016767,2]
[366278455,1750170668381,-2036.86,0.00016767,2]
[366278456,1750170668391,-1686.23,0.00016767,2]
[366278457,1750170668401,-490.0,0.00016767,2]
[366278458,1750170668410,-490.0,0.00016767,2]
[366278459,1750170668420,-1096.42,0.00016767,2]
[366278460,1750170668429,-1591.14,0.00016767,2]
[366278461,1750170668439,-490.0,0.00016767,2]